bitfinex/quotes_ETHUSD_20251126
["timestamp","ask_amount","ask_price","bid_price","bid_amount"]
[1764191799734,0.94400001,3022.2,3022.1,3.30895734]
[1764191799929,1.25280333,3022.2,3022.1,3.30895734]
[1764191800134,1.25280333,3022.2,3022.1,4.03455145]
[1764191804556,1.25280333,3022.2,3022.0,0.001]
[1764191804757,1.21840332,3022.1,3022.0,0.001]
[1764191804956,2.06351206,3022.1,3022.0,0.001]
[1764191807157,1.3509289,3022.1,3022.0,0.001]
[1764191807359,1.5599289,3022.1,3022.0,0.001]
[1764191807682,5.58103594,3022.1,3022.0,0.001]
[1764191807831,5.58132595,3022.1,3022.0,0.001]
[1764191808155,6.08132595,3022.1,3022.0,0.001]
[1764191808357,0.405504,3022.0,3021.7,0.001]
[1764191808571,0.405504,3022.0,3021.4,0.001]
[1764191808572,6.40744567,3021.5,3021.4,0.001]
[1764191808730,8.04293753,3021.5,3021.4,0.001]
[1764191808929,8.54273753,3021.5,3021.4,0.001]
[1764191809126,8.67529166,3021.5,3021.4,0.001]
[1764191809960,11.98490608,3021.5,3021.4,0.001]
[1764191811357,7.75429313,3021.5,3021.4,0.001]
[1764191811557,7.96329313,3021.5,3021.4,0.001]
[1764191812462,11.27290755,3021.5,3021.4,0.001]
[1764191812837,7.96329313,3021.5,3021.4,0.001]
[1764191813044,8.46329313,3021.5,3021.4,0.001]
[1764191813866,11.77290755,3021.5,3021.4,0.001]
[1764191814371,14.80329313,3021.5,3021.4,0.001]
[1764191816062,18.11290755,3021.5,3021.4,0.001]
[1764191819240,24.92585722,3021.5,3021.4,0.001]
[1764191819441,18.51841155,3021.5,3021.4,0.001]
[1764191819636,24.92585722,3021.5,3021.4,0.001]
[1764191819843,24.92585722,3021.5,3021.2,0.001]
[1764191819844,0.405504,3021.4,3021.2,0.001]
[1764191820039,7.160039,3021.3,3021.2,0.001]
[1764191820235,7.160039,3021.3,3021.0,0.001]
[1764191820236,1.53689811,3021.2,3021.0,0.001]
[1764191820444,1.13109811,3021.0,3020.9,0.001]
[1764191820667,2.55448658,3021.0,3020.9,0.001]
[1764191820862,3.18688993,3021.0,3020.9,0.001]
[1764191821565,9.52688993,3021.0,3020.9,0.001]
[1764191822155,12.83705212,3021.0,3020.9,0.001]
[1764191822365,18.01970854,3021.0,3020.9,0.001]
[1764191822585,18.72683934,3021.0,3020.9,0.001]
[1764191822870,22.03700153,3021.0,3020.8,0.001]
[1764191823066,2.56132813,3020.9,3020.8,0.001]
[1764191823272,1.85419733,3020.9,3020.8,0.001]
[1764191824178,11.78091477,3020.9,3020.8,0.001]
[1764191824953,11.57191477,3020.9,3020.8,0.001]
[1764191825156,11.78091477,3020.9,3020.8,0.001]
[1764191826070,1.44869333,3020.9,3020.8,0.001]
[1764191826373,1.65769333,3020.9,3020.8,0.001]
[1764191828154,8.065139,3020.9,3020.8,0.001]
[1764191828546,11.37541077,3020.9,3020.8,0.001]
[1764191829040,8.065139,3020.9,3020.8,0.001]
[1764191829241,11.37541077,3020.9,3020.8,0.001]
[1764191829843,8.065139,3020.9,3020.8,0.001]
[1764191830067,1.65769333,3020.9,3020.8,0.001]
[1764191830257,2.65205694,3020.9,3020.8,0.001]
[1764191830566,2.44305694,3020.9,3020.8,0.001]
[1764191830763,0.30909333,3020.9,3020.8,0.4262]
[1764191830967,0.51809333,3020.9,3020.8,0.4262]
[1764191831182,0.30909333,3020.9,3020.8,0.4262]
[1764191831384,6.34,3021.6,3020.8,0.8514]
[1764191831588,0.51640752,3021.5,3020.8,0.8514]
[1764191831755,0.30740752,3021.4,3020.9,0.4252]
[1764191831955,0.80740752,3021.3,3020.9,0.4252]
[1764191832171,0.30740752,3021.2,3020.9,0.4252]
[1764191832482,0.51640752,3021.1,3021.0,3.31016219]
[1764191832663,0.51640752,3021.1,3021.0,4.01482521]
[1764191832860,0.51640752,3021.1,3021.0,4.86522521]
[1764191835072,0.51840752,3021.1,3021.0,4.86522521]
[1764191836263,0.51840752,3021.1,3021.0,4.01482521]
[1764191836468,0.51840752,3021.1,3020.8,0.001]
[1764191836469,0.51840752,3021.1,3020.8,0.72659411]
[1764191836664,0.30740752,3021.0,3020.8,0.72659411]
[1764191836867,0.30740752,3020.9,3020.8,0.72659411]
[1764191837266,0.30740752,3020.9,3020.8,1.57699411]
[1764191838470,0.30740752,3020.9,3020.8,4.88737546]
[1764191838691,0.30740752,3020.9,3020.8,5.7177921]
[1764191840087,0.211,3021.1,3020.8,9.02817345]
[1764191840286,0.211,3021.1,3021.0,0.4252]
[1764191840496,0.211,3021.1,3021.0,3.73536219]
[1764191841566,0.002,3021.1,3021.0,3.73536219]
[1764191841768,0.002,3021.1,3021.0,12.79461032]
[1764191849583,0.002,3021.5,3021.1,8.18441211]
[1764191849767,0.002,3021.7,3021.1,8.18441211]
[1764191849768,1e-08,3021.8,3021.7,4.46018948]
[1764191849959,0.002,3022.5,3022.1,0.830704]
[1764191850190,0.002,3022.9,3022.7,0.4232]
[1764191850388,0.002,3022.9,3022.8,7.96174378]
[1764191850575,0.002,3022.9,3022.8,1.97749811]
[1764191851405,0.002,3022.9,3022.8,1.57199411]
[1764191851576,0.002,3022.9,3022.8,1.75009352]
[1764191851967,0.002,3022.9,3022.8,5.0582846]
[1764191852165,0.002,3022.9,3022.8,4.2118846]
[1764191852367,0.002,3022.9,3022.8,4.6350846]
[1764191852672,0.002,3022.9,3022.8,5.0582846]
[1764191854397,0.002,3022.9,3022.8,4.2118846]
[1764191854599,0.4821,3022.9,3022.8,4.2118846]
[1764191854778,0.6716,3022.9,3022.8,3.30819108]
[1764191854983,1.148,3022.9,3022.8,3.30819108]
[1764191855294,1.148,3022.9,3022.8,4.03378519]
[1764191855671,0.6716,3022.9,3022.8,4.03378519]
[1764191856184,0.002,3022.9,3022.8,4.88018519]
[1764191856379,0.002,3022.9,3022.8,6.029864]
[1764191856992,0.002,3022.9,3022.8,6.435368]
[1764191859791,1e-08,3023.3,3023.2,0.828704]
[1764191859994,1e-08,3023.3,3023.2,10.26258005]
[1764191860235,1e-08,3023.3,3023.2,15.04069143]
[1764191865600,1e-08,3023.3,3023.2,15.49358582]
[1764191866125,1e-08,3023.3,3023.2,22.32891882]
[1764191870024,1e-08,3023.3,3023.2,22.31218171]
[1764191870264,1e-08,3023.3,3023.2,19.48981471]
[1764191870528,1e-08,3023.3,3023.2,4.76141138]
[1764191870697,1e-08,3023.3,3023.2,5.48700549]
[1764191871428,1e-08,3023.3,3023.2,5.08050549]
[1764191871988,1e-08,3023.3,3023.2,5.48700549]
[1764191874600,1e-08,3023.3,3023.2,5.89350549]
[1764191875117,1e-08,3023.3,3023.2,5.48700549]
[1764191876503,1e-08,3023.3,3023.2,5.08050549]
[1764191876703,0.46930001,3023.3,3023.2,5.08050549]
[1764191877389,1e-08,3023.3,3023.2,5.08050549]
[1764191877589,1e-08,3023.3,3023.2,5.48700549]
[1764191878527,1e-08,3023.3,3023.2,12.56388149]
[1764191878707,1e-08,3023.3,3023.2,8.79371449]
[1764191879036,1e-08,3023.3,3023.2,9.24660888]
[1764191880914,1e-08,3024.0,3023.9,0.812004]
[1764191881215,1e-08,3024.0,3023.9,10.24588005]
[1764191881417,1e-08,3024.0,3023.9,11.69786805]
[1764191881839,0.96140001,3024.0,3023.9,1.77108211]
[1764191882129,0.96140001,3024.0,3023.9,0.72559411]
[1764191882831,0.96140001,3024.0,3023.9,4.03258177]
[1764191883031,1.27032555,3024.0,3023.9,4.03258177]
[1764191884338,1.27032555,3024.0,3023.9,3.30698766]
[1764191884713,1.27032555,3024.0,3023.9,4.03258177]
[1764191894413,1.27032555,3024.0,3023.9,0.72559411]
[1764191894719,1.27032555,3024.0,3023.9,4.03258177]
[1764191894867,1.27032555,3024.0,3023.9,3.30698766]
[1764191896283,1.27032555,3024.0,3023.7,0.72559411]
[1764191896497,0.99132554,3023.9,3023.7,0.72559411]
[1764191896802,0.79632554,3023.8,3023.7,0.72559411]
[1764191897101,1.29612554,3023.8,3023.7,0.72559411]
[1764191897601,1.29612554,3023.8,3023.7,4.03280051]
[1764191897773,1.29612554,3023.8,3022.5,1.77963559]
[1764191897774,1.29612554,3023.8,3023.2,3.30775337]
[1764191897973,3.51605661,3023.9,3023.2,3.30775337]
[1764191897974,0.80772554,3023.7,3023.2,6.61550674]
[1764191898213,0.30892554,3023.6,3023.3,0.72559411]
[1764191898371,0.30892554,3023.5,3023.3,0.72559411]
[1764191898576,0.79632554,3023.4,3023.3,0.72559411]
[1764191898987,1.29612554,3023.4,3023.3,0.72559411]
[1764191899722,1.29612554,3023.4,3022.8,0.001]
[1764191899924,0.4874,3023.2,3022.8,0.001]
[1764191900079,0.5906,3022.9,3022.8,0.001]
[1764191900281,0.89952554,3022.9,3022.8,0.001]
[1764191900597,1.39932554,3022.9,3022.8,0.001]
[1764191904525,1.39870026,3022.9,3022.8,0.001]
[1764191905105,1.0904,3022.9,3022.8,0.001]
[1764191905410,1.39860847,3022.9,3022.8,0.001]
[1764191907793,11.45219411,3022.9,3022.8,0.001]
[1764191909020,11.66119411,3022.9,3022.8,0.001]
[1764191910208,8.35311247,3022.9,3022.8,0.001]
[1764191910398,11.25569011,3022.9,3022.8,0.001]
[1764191912110,4.91569011,3022.9,3022.8,0.001]
[1764191912411,11.25569011,3022.9,3022.8,0.001]
[1764191916688,7.23880847,3022.9,3022.8,0.001]
[1764191916888,7.94760847,3022.9,3022.8,0.001]
[1764191917092,11.25569011,3022.9,3022.8,0.001]
[1764191918119,0.70980847,3022.9,3022.8,0.001]
[1764191918333,0.51720847,3022.9,3022.8,0.001]
[1764191918512,0.209,3022.9,3022.8,0.001]
[1764191919409,1.50416434,3022.9,3022.8,0.001]
[1764191919610,0.51696434,3022.9,3022.8,0.001]
[1764191920692,0.51696434,3022.9,3022.8,0.4085]
[1764191920913,0.51696434,3022.9,3022.8,3.71669108]
[1764191921419,0.51696434,3022.9,3022.8,3.30919108]
[1764191921591,1.50416434,3022.9,3022.8,0.001]
[1764191922216,4.81224598,3022.9,3022.8,0.001]
[1764191924222,1.50416434,3022.9,3022.8,0.001]
[1764191924616,4.81224598,3022.9,3022.8,0.001]
[1764191925428,1.00436434,3022.9,3022.8,0.001]
[1764191925599,1.45996434,3022.9,3022.8,0.001]
[1764191926297,2.17218459,3022.9,3022.8,0.001]
[1764191928939,5.48026623,3022.9,3022.8,0.001]
[1764191929248,11.82026623,3022.9,3022.8,0.001]
[1764191929541,16.01940651,3022.9,3022.5,0.001]
[1764191929842,0.4417,3022.6,3022.5,0.001]
[1764191930140,0.74966434,3022.6,3022.5,0.001]
[1764191930357,1.91748459,3022.6,3022.5,0.001]
[1764191931137,1.02018459,3022.6,3022.5,0.4085]
[1764191931340,0.51696434,3022.6,3022.5,3.71701943]
[1764191931537,0.51696434,3022.6,3022.5,4.82718342]
[1764191933723,0.51696434,3022.6,3022.5,3.71701943]
[1764191934330,0.51696434,3022.6,3022.5,3.30951943]
[1764191934640,0.98806434,3022.6,3022.5,3.30951943]
[1764191935039,0.51696434,3022.6,3022.5,3.71701943]
[1764191935850,0.51696434,3022.6,3022.5,3.30951943]
[1764191936353,0.51696434,3022.6,3022.5,3.71701943]
[1764191938945,1.44366434,3022.6,3022.5,0.001]
[1764191939445,2.15750845,3022.6,3022.5,0.001]
[1764191940246,5.46591842,3022.6,3022.5,0.001]
[1764191940843,2.15750845,3022.6,3022.5,0.001]
[1764191941738,0.77906434,3022.6,3022.5,0.001]
[1764191941950,0.30796434,3022.6,3022.5,0.001]
[1764191942253,0.98806434,3022.6,3022.5,0.001]
[1764191942547,1.7019974,3022.6,3022.5,0.001]
[1764191942747,0.98806434,3022.6,3022.5,0.001]
[1764191942952,0.30796434,3022.6,3022.5,0.001]
[1764191943152,0.51696434,3022.6,3022.5,0.4085]
[1764191943344,0.98806434,3022.6,3022.5,0.001]
[1764191943554,1.44366434,3022.6,3022.5,0.001]
[1764191943856,0.98806434,3022.6,3022.5,0.001]
[1764191944462,0.30796434,3022.6,3022.5,1.47794767]
[1764191944750,0.51796434,3022.6,3022.5,1.47794767]
[1764191944952,0.51796434,3022.6,3022.5,5.51206121]
[1764191945951,0.51796434,3022.6,3022.5,4.69706121]
[1764191946157,0.98906434,3022.6,3022.5,4.03511354]
[1764191947629,0.51796434,3022.6,3022.5,4.44261354]
[1764191948533,0.98886434,3022.6,3022.5,4.03511354]
[1764191949934,1.46566434,3022.6,3022.5,0.72659411]
[1764191950128,2.17990439,3022.6,3022.5,0.001]
[1764191950937,8.51990439,3022.6,3022.5,0.001]
[1764191951142,18.64378037,3022.6,3022.5,0.001]
[1764191951340,22.84324898,3022.6,3022.4,0.001]
[1764191951560,1.92830439,3022.5,3022.4,0.001]
[1764191951865,9.25690269,3022.5,3022.4,0.001]
[1764191952032,9.25690269,3022.5,3021.8,0.001]
[1764191952033,13.95102213,3022.2,3021.8,0.001]
[1764191952232,8.34571303,3021.9,3021.8,0.001]
[1764191952463,9.3699849,3021.9,3021.8,0.001]
[1764191952663,3.43682289,3021.9,3021.8,0.001]
[1764191953160,5.85415221,3021.9,3021.8,0.001]
[1764191953356,6.74519468,3021.9,3021.8,0.001]
[1764191954061,6.95519468,3021.9,3021.8,0.001]
[1764191954258,5.85415221,3021.9,3021.8,0.001]
[1764191954566,6.06415221,3021.9,3021.8,0.001]
[1764191955651,0.405504,3021.6,3020.9,0.001]
[1764191955850,0.4673,3021.0,3020.9,0.001]
[1764191956044,0.98733182,3021.0,3020.9,0.001]
[1764191956250,1.45203182,3021.0,3020.9,0.001]
[1764191957169,0.98733182,3021.0,3020.9,0.001]
[1764191957353,1.45203182,3021.0,3020.9,0.001]
[1764191958169,4.76219401,3021.0,3020.9,0.001]
[1764191959054,1.45203182,3021.0,3020.9,0.001]
[1764191959861,7.79203182,3021.0,3020.9,0.001]
[1764191960038,7.11733182,3021.0,3020.9,0.001]
[1764191960237,7.32733182,3021.0,3020.9,0.001]
[1764191960964,6.65003182,3021.0,3020.9,0.4095]
[1764191961167,6.86003182,3021.0,3020.9,0.4095]
[1764191962145,6.86003182,3021.0,3020.9,3.71977177]
[1764191962583,6.65003182,3021.0,3020.9,3.71977177]
[1764191962756,7.32733182,3021.0,3020.9,0.001]
[1764191962942,7.79203182,3021.0,3020.9,0.001]
[1764191968069,11.10219401,3021.0,3020.9,0.001]
[1764191968843,7.79203182,3021.0,3020.9,0.001]
[1764191969157,7.32733182,3021.0,3020.9,0.001]
[1764191970673,10.42749401,3021.0,3020.9,0.001]
[1764191970866,11.10219401,3021.0,3020.9,0.001]
[1764191971675,7.79203182,3021.0,3020.9,0.001]
[1764191971887,11.10219401,3021.0,3020.9,0.001]
[1764191972572,6.65003182,3021.0,3020.9,0.4095]
[1764191972778,6.86003182,3021.0,3020.9,0.4095]
[1764191973356,6.86003182,3021.0,3020.9,3.71977177]
[1764191973552,6.65003182,3021.0,3020.9,3.71977177]
[1764191973751,6.65003182,3021.0,3020.9,4.83147617]
[1764191973752,6.86003182,3021.0,3020.9,4.83147617]
[1764191974075,6.55,3021.0,3020.9,4.83147617]
[1764191974269,6.85800498,3021.0,3020.9,4.83147617]
[1764191975058,6.85800498,3021.0,3020.9,4.12827177]
[1764191977578,0.51800498,3021.0,3020.9,4.12827177]
[1764191978985,0.51800498,3021.0,3020.9,3.71977177]
[1764191979793,0.51800498,3021.0,3020.9,3.31127177]
[1764191980079,0.98530498,3021.0,3020.9,0.001]
[1764191980583,1.45000498,3021.0,3020.9,0.001]
[1764191981164,2.16408104,3021.0,3020.9,0.001]
[1764191984491,5.47424323,3021.0,3020.9,0.001]
[1764191984985,2.16408104,3021.0,3020.9,0.001]
[1764191986583,8.50408104,3021.0,3020.9,0.001]
[1764191986888,7.57208104,3021.0,3020.9,0.001]
[1764191987913,8.07038104,3021.0,3020.9,0.001]
[1764191988490,7.86038104,3021.0,3020.9,0.001]
[1764191988695,8.07038104,3021.0,3020.9,0.001]
[1764191988899,8.52948104,3021.0,3020.9,0.001]
[1764191990864,0.405504,3020.9,3020.8,0.001]
[1764191991076,0.405504,3020.7,3020.5,0.001]
[1764191991277,9.16207915,3020.6,3020.5,0.001]
[1764191991476,9.16207915,3020.6,3018.2,12.03678331]
[1764191991477,0.405504,3020.2,3018.7,3.31262102]
[1764191991798,0.405504,3020.2,3017.9,0.1063]
[1764191991799,0.405504,3020.1,3018.9,0.4125]
[1764191992096,0.89296936,3019.8,3018.9,1.84964741]
[1764191992297,1.23208104,3019.7,3019.0,6.62471016]
[1764191992484,1.02208104,3019.6,3019.0,3.31235508]
[1764191992689,0.30800498,3019.5,3019.0,6.62471016]
[1764191992903,0.30800498,3019.4,3019.0,6.62471016]
[1764191993067,0.4009,3019.7,3019.0,7.82128059]
[1764191993068,0.30800498,3019.3,3019.0,7.82128059]
[1764191993272,0.30800498,3019.2,3019.0,7.82128059]
[1764191993587,0.30800498,3019.1,3019.0,5.23451962]
[1764191993978,0.30800498,3019.1,3019.0,5.64701962]
[1764191995190,0.30800498,3019.1,3019.0,5.23451962]
[1764191995368,0.30800498,3019.1,3019.0,5.64701962]
[1764191995878,0.51800498,3019.1,3019.0,5.64701962]
[1764191996083,0.51898496,3019.1,3019.0,4.45044919]
[1764191996279,0.21,3019.1,3019.0,4.45044919]
[1764191996474,0.21,3019.1,3019.0,4.86294919]
[1764191999994,0.1909,3019.9,3019.0,11.48765935]
[1764192000305,0.51866281,3019.8,3019.1,0.4125]
[1764192000506,0.30866281,3019.7,3019.1,0.4125]
[1764192000704,0.30866281,3019.6,3019.1,0.80964622]
[1764192000921,0.30866281,3019.5,3019.2,0.4125]
[1764192001214,0.21,3019.4,3019.2,0.4125]
[1764192001436,0.1909,3019.9,3019.2,0.4125]
[1764192001437,0.21,3019.3,3019.2,0.4125]
[1764192001578,0.65,3020.3,3019.8,0.4125]
[1764192001777,0.51860283,3020.2,3019.2,0.4125]
[1764192002011,0.30860283,3020.1,3019.3,0.4125]
[1764192002317,0.51860283,3020.0,3019.3,0.4125]
[1764192002489,0.30860283,3019.9,3019.2,9.93640698]
[1764192002681,0.21,3020.0,3019.2,11.41510709]
[1764192002682,0.30860283,3019.8,3019.2,11.41510709]
[1764192002996,0.21,3020.0,3019.2,7.69047143]
[1764192002997,0.30860283,3019.7,3019.2,7.69047143]
[1764192003197,0.30860283,3019.6,3019.2,7.69047143]
[1764192003391,0.4983,3019.3,3018.8,0.0779]
[1764192003580,0.4983,3019.3,3018.3,0.4125]
[1764192003581,0.4983,3018.9,3018.7,3.31265406]
[1764192003778,6.7989,3019.6,3018.0,3.31336604]
[1764192003779,0.6457,3018.8,3018.0,3.31336604]
[1764192004100,0.6457,3018.8,3018.2,6.6264661]
[1764192004905,0.21,3018.8,3018.2,6.6264661]
[1764192005302,0.6691,3018.8,3018.2,6.6264661]
[1764192005484,0.21,3018.8,3018.2,6.6264661]
[1764192005678,0.21,3018.8,3018.2,3.31323305]
[1764192005881,0.21,3018.7,3018.2,6.6264661]
[1764192006304,0.6691,3018.7,3018.2,6.6264661]
[1764192006711,0.6691,3018.7,3018.3,0.72559411]
[1764192006998,0.6677,3018.7,3018.3,0.72559411]
[1764192007805,0.405504,3019.3,3018.6,0.4125]
[1764192008008,1.08386936,3019.9,3018.6,0.4125]
[1764192008009,0.30839716,3019.2,3018.7,6.62536852]
[1764192008302,0.51839716,3019.1,3018.7,6.62536852]
[1764192008605,0.30839716,3019.0,3018.7,6.62536852]
[1764192009183,0.30839716,3019.0,3018.9,0.4125]
[1764192009396,0.21,3019.0,3018.9,0.4125]
[1764192009599,0.51839716,3019.0,3018.9,0.4125]
[1764192010200,0.30839716,3019.0,3018.9,3.7249648]
[1764192010507,0.21,3019.0,3018.9,4.84121816]
[1764192010723,0.21,3019.0,3018.9,3.7249648]
[1764192011887,6.7977,3019.6,3018.9,10.7623944]
[1764192012186,0.51838748,3019.5,3019.0,0.4125]
[1764192012413,0.51838748,3019.5,3019.1,0.0819]
[1764192012414,0.30838748,3019.4,3019.1,0.0819]
[1764192012614,0.30838748,3019.4,3019.1,1.12507944]
[1764192012615,0.21,3019.3,3019.1,1.12507944]
[1764192012787,0.21,3019.3,3019.2,0.4125]
[1764192012998,0.1909,3019.9,3019.2,0.825]
[1764192013314,0.51855209,3019.8,3019.2,0.4125]
[1764192013622,1.17077165,3020.1,3019.3,0.4125]
[1764192013623,0.51855209,3019.7,3019.3,0.4125]
[1764192013831,0.30855209,3019.6,3019.3,0.4125]
[1764192014321,0.30855209,3019.6,3019.5,0.4125]
[1764192016206,0.30855209,3019.6,3019.5,3.72430659]
[1764192018124,0.51855209,3019.6,3019.5,4.13680659]
[1764192018311,0.51855209,3019.6,3019.5,4.88167888]
[1764192019020,0.51855209,3019.6,3019.5,3.72430659]
[1764192021328,0.30855209,3019.6,3019.5,4.13680659]
[1764192021548,0.51855209,3019.6,3019.5,4.13680659]
[1764192022343,0.51855209,3019.6,3019.5,3.72430659]
[1764192022344,0.30855209,3019.6,3019.5,3.72430659]
[1764192022526,0.51855209,3019.6,3019.5,3.72430659]
[1764192023350,0.51855209,3019.6,3019.2,3.72460303]
[1764192023351,1.49685209,3019.6,3019.3,0.72559411]
[1764192023525,0.30855209,3019.5,3019.3,0.72559411]
[1764192023726,0.30855209,3019.4,3019.3,0.72559411]
[1764192024130,0.30855209,3019.4,3019.3,1.13809411]
[1764192025494,0.30855209,3019.4,3019.3,4.45012007]
[1764192025646,0.30855209,3019.4,3019.3,4.03762007]
[1764192025849,0.80155209,3019.4,3019.3,4.03762007]
[1764192026941,1.28685209,3019.4,3019.2,3.31213566]
[1764192027112,0.21,3019.6,3019.3,0.72559411]
[1764192027311,0.30962413,3019.5,3019.3,0.72559411]
[1764192027511,0.80262413,3019.4,3019.3,4.03762007]
[1764192028045,1.28792413,3019.4,3019.3,4.03762007]
[1764192028214,1.28792413,3019.4,3019.1,3.31323813]
[1764192028215,1.28792413,3019.4,3019.2,3.31212145]
[1764192028417,0.4236,3019.2,3019.1,0.001]
[1764192028752,0.94322413,3019.2,3019.1,0.001]
[1764192029051,1.42852413,3019.2,3019.1,3.31324537]
[1764192029455,1.42852413,3019.2,3019.1,0.001]
[1764192029942,0.94322413,3019.2,3019.1,0.001]
[1764192031652,1.42852413,3019.2,3019.1,0.001]
[1764192033254,0.51962413,3019.2,3019.1,0.4135]
[1764192033564,0.51962413,3019.2,3019.1,3.72574537]
[1764192035056,1.01262413,3019.2,3019.1,3.31324537]
[1764192035232,1.49792413,3019.2,3019.1,3.31324537]
[1764192035859,1.49792413,3019.2,3019.1,0.001]
[1764192039763,11.864202,3019.2,3019.1,0.001]
[1764192040268,12.269706,3019.2,3019.1,0.001]
[1764192040446,12.99530011,3019.2,3019.1,0.001]
[1764192043939,2.03999811,3019.1,3018.8,0.001]
[1764192044137,1.78986873,3018.9,3018.8,0.001]
[1764192044350,1.92157034,3018.9,3018.8,0.001]
[1764192044669,2.40317034,3018.9,3018.8,0.001]
[1764192045047,2.61317034,3018.9,3018.8,0.001]
[1764192045298,2.20766634,3018.9,3018.8,0.001]
[1764192046149,0.51962413,3018.9,3018.8,0.001]
[1764192046345,1.01382413,3018.9,3018.8,0.001]
[1764192047577,1.01382413,3018.9,3018.8,0.4135]
[1764192047578,0.30962413,3018.9,3018.8,0.4135]
[1764192047760,0.51962413,3018.9,3018.8,0.4135]
[1764192049181,0.30962413,3018.9,3018.8,0.4135]
[1764192049358,0.51962413,3018.9,3018.8,4.13857453]
[1764192050280,0.30939271,3018.9,3018.8,5.52633737]
[1764192050485,0.51939271,3018.9,3018.8,5.11383737]
[1764192050673,0.51939271,3018.9,3018.8,3.72607453]
[1764192052577,0.89206473,3019.7,3018.8,4.13857453]
[1764192052915,0.002,3020.5,3019.7,1.29756873]
[1764192053185,0.002,3020.5,3019.7,0.1031]
[1764192053400,0.002,3020.5,3019.9,0.72559411]
[1764192053855,0.002,3020.5,3020.4,0.1031]
[1764192054972,0.002,3020.5,3020.4,0.85904764]
[1764192055277,0.002,3020.5,3020.4,0.75594764]
[1764192055476,0.002,3020.5,3020.3,3.31089078]
[1764192056067,0.9758,3020.4,3020.0,0.72559411]
[1764192056282,0.4942,3020.3,3020.0,0.72559411]
[1764192056476,0.212,3020.2,3020.0,0.72559411]
[1764192057088,0.212,3020.2,3020.0,1.27461186]
[1764192057389,0.212,3020.2,3020.1,0.1031]
[1764192057775,0.212,3020.2,3020.1,4.13984274]
[1764192060397,0.214,3020.2,3020.1,4.13984274]
[1764192060910,0.002,3020.2,3020.1,4.24294274]
[1764192061065,0.002,3020.2,3020.1,6.21869055]
[1764192062600,0.4962,3020.2,3020.1,0.72559411]
[1764192062895,0.4962,3020.2,3019.2,6.62427132]
[1764192062896,0.9778,3020.2,3019.2,6.62427132]
[1764192063096,0.9778,3020.2,3019.3,0.66242713]
[1764192063269,0.9778,3020.2,3019.3,1.38802124]
[1764192064193,0.4816,3020.1,3019.3,1.38802124]
[1764192064366,0.211,3020.0,3019.5,0.72559411]
[1764192064795,0.6666,3019.9,3019.5,0.72559411]
[1764192065366,0.4816,3019.8,3019.5,0.72559411]
[1764192065595,0.185,3019.9,3019.5,1.47822978]
[1764192066305,0.6666,3019.9,3019.6,3.31169691]
[1764192066473,0.185,3019.9,3019.6,3.31169691]
[1764192066669,0.4942,3019.7,3019.6,4.03729102]
[1764192067785,0.9932,3019.7,3019.6,4.03729102]
[1764192068395,0.185,3019.9,3019.6,4.03729102]
[1764192068606,0.684,3019.9,3019.6,4.03729102]
[1764192068800,0.4734,3019.7,3019.6,4.03729102]
[1764192074406,0.9461,3019.7,3019.6,0.72559411]
[1764192074708,0.9461,3019.7,3019.6,4.03729102]
[1764192075801,0.9461,3019.7,3019.6,0.72559411]
[1764192076304,0.9461,3019.7,3019.6,4.03729102]
[1764192077580,0.9461,3019.7,3019.0,3.31235508]
[1764192077780,0.185,3019.9,3019.0,6.62471016]
[1764192078079,0.6577,3019.9,3019.1,0.82879411]
[1764192078513,0.6577,3019.9,3019.5,0.001]
[1764192078685,0.4727,3019.8,3019.5,0.001]
[1764192078882,0.4786,3019.6,3019.5,0.001]
[1764192079394,0.4727,3019.8,3019.5,0.001]
[1764192079602,0.211,3019.7,3019.5,0.72659411]
[1764192080603,0.211,3019.7,3019.6,0.1032]
[1764192081510,0.211,3019.7,3019.6,3.41489691]
[1764192081697,0.211,3019.7,3019.5,0.001]
[1764192081698,4.66300084,3019.7,3019.5,0.001]
[1764192081902,0.9513,3019.6,3019.5,0.001]
[1764192084587,4.66850091,3019.6,3019.5,0.001]
[1764192085005,0.405504,3019.5,3018.8,0.001]
[1764192085307,0.4786,3018.9,3018.8,0.001]
[1764192085554,0.6896,3018.9,3018.8,0.001]
[1764192085704,1.1623,3018.9,3018.8,0.001]
[1764192087613,0.211,3018.9,3018.8,0.001]
[1764192087815,1.1623,3018.9,3018.8,0.001]
[1764192089304,0.211,3018.9,3018.8,0.001]
[1764192089821,0.6896,3018.9,3018.8,0.001]
[1764192090427,0.211,3018.9,3018.8,0.001]
[1764192090731,0.211,3018.9,3018.8,0.1042]
[1764192091092,0.211,3018.9,3018.8,3.41677453]
[1764192093524,0.1891,3019.7,3018.8,3.41677453]
[1764192093525,0.002,3020.2,3018.9,9.9373944]
[1764192093827,0.1891,3019.9,3019.0,0.88958713]
[1764192094123,0.1891,3019.9,3018.9,0.72559411]
[1764192094124,0.6837,3019.8,3018.9,0.72559411]
[1764192094328,0.6837,3019.8,3019.0,1.23300963]
[1764192094494,0.6837,3019.8,3019.2,0.72559411]
[1764192095631,0.211,3019.8,3019.2,0.82879411]
[1764192095936,0.211,3019.8,3019.7,0.1032]
[1764192096523,0.211,3019.8,3019.7,3.41478724]
[1764192098839,0.211,3019.8,3019.7,3.31158724]
[1764192099442,0.52029051,3019.8,3019.7,3.31158724]
[1764192100573,0.99889051,3019.8,3019.7,3.31158724]
[1764192100711,0.99889051,3019.8,3019.4,0.72559411]
[1764192100913,0.78789051,3019.7,3019.4,0.72559411]
[1764192101113,0.30928513,3019.6,3019.4,0.72559411]
[1764192101336,0.30928513,3019.5,3019.4,0.72559411]
[1764192101747,0.30928513,3019.5,3019.4,0.82879411]
[1764192103349,0.30928513,3019.5,3019.4,4.14071038]
[1764192103551,0.30928513,3019.5,3019.3,3.31192823]
[1764192103552,1.26058513,3019.5,3019.3,3.31192823]
[1764192103717,1.26058513,3019.4,3019.0,0.72559411]
[1764192103914,0.52028513,3019.3,3019.0,0.72559411]